bitfinex/quotes_BTCUSD_20240911
["timestamp","ask_amount","ask_price","bid_price","bid_amount"]
[1726028636211,1.25344917,56494.0,56493.0,3.26740624]
[1726028636438,1.25344917,56494.0,56493.0,3.28140624]
[1726028636645,1.25344917,56494.0,56493.0,3.53982793]
[1726028637954,1.25344917,56494.0,56493.0,3.38140624]
[1726028643892,1.25344917,56494.0,56493.0,3.42721518]
[1726028644305,1.25344917,56494.0,56493.0,3.38140624]
[1726028644575,1.25344917,56494.0,56493.0,3.38152912]
[1726028645810,1.25344917,56494.0,56493.0,3.18258894]
[1726028646035,1.83504917,56494.0,56493.0,3.18258894]
[1726028647280,1.83504917,56494.0,56493.0,3.3409146]
[1726028647720,1.83504917,56494.0,56493.0,3.40433806]
[1726028647721,1.25344917,56494.0,56493.0,3.40433806]
[1726028647938,1.25344917,56494.0,56493.0,3.39033806]
[1726028648186,1.25344917,56494.0,56493.0,3.38152912]
[1726028648681,1.25344917,56494.0,56493.0,3.36752912]
[1726028648901,1.25344917,56494.0,56493.0,3.41333806]
[1726028649118,1.25344917,56494.0,56493.0,3.38152912]
[1726028649795,1.25344917,56494.0,56493.0,3.36752912]
[1726028650935,1.83504917,56494.0,56493.0,3.24452912]
[1726028651158,1.83504917,56494.0,56493.0,3.06858894]
[1726028651808,1.83504917,56494.0,56493.0,3.08258894]
[1726028652302,1.83504917,56494.0,56493.0,3.16858894]
[1726028652793,1.83504917,56494.0,56493.0,3.18258894]
[1726028653006,1.83504917,56494.0,56493.0,3.41656503]
[1726028653467,1.64644917,56494.0,56493.0,3.38152912]
[1726028653703,1.25344917,56494.0,56493.0,3.38152912]
[1726028653942,1.25344917,56494.0,56493.0,3.42733806]
[1726028654183,1.25344917,56494.0,56493.0,3.49821306]
[1726028654420,1.25344917,56494.0,56493.0,3.43840673]
[1726028654715,1.19807443,56494.0,56493.0,3.45240673]
[1726028655635,0.000816,56495.0,56493.0,3.43381518]
[1726028655853,0.00014752,56495.0,56494.0,0.47726481]
[1726028656311,0.00014752,56495.0,56494.0,1.97726481]
[1726028658316,0.00014752,56495.0,56494.0,1.79894018]
[1726028658554,0.00014752,56495.0,56494.0,1.81294018]
[1726028659656,0.00014752,56495.0,56494.0,1.85874912]
[1726028659866,0.00014752,56495.0,56494.0,2.03707375]
[1726028660545,0.00014752,56495.0,56494.0,1.81294018]
[1726028660999,2.691e-05,56495.0,56494.0,1.81294018]
[1726028661966,2.691e-05,56495.0,56494.0,1.85874912]
[1726028662190,2.691e-05,56495.0,56494.0,1.81294018]
[1726028662641,1.19788828,56497.0,56494.0,1.81294018]
[1726028662855,1.19788828,56497.0,56496.0,0.17594018]
[1726028663071,1.19788828,56497.0,56496.0,0.29894018]
[1726028663279,1.19788828,56497.0,56496.0,1.79894018]
[1726028664383,1.61108828,56497.0,56496.0,1.79894018]
[1726028664616,1.79608828,56497.0,56496.0,1.67594018]
[1726028665329,1.79608828,56497.0,56496.0,1.68994018]
[1726028665801,1.19788828,56497.0,56496.0,1.78994018]
[1726028666026,1.19788828,56497.0,56496.0,1.81294018]
[1726028666977,1.19788828,56497.0,56496.0,1.79894018]
[1726028667224,1.61108828,56497.0,56496.0,1.78994018]
[1726028667457,1.79608828,56497.0,56496.0,1.78994018]
[1726028667958,1.79608828,56497.0,56496.0,1.77594018]
[1726028668197,1.79608828,56497.0,56496.0,1.78994018]
[1726028668662,1.79608828,56497.0,56496.0,1.77594018]
[1726028668886,1.61108828,56497.0,56496.0,1.78994018]
[1726028669112,1.19788828,56497.0,56496.0,1.81294018]
[1726028670317,1.19788828,56497.0,56496.0,1.79894018]
[1726028670547,1.19788828,56497.0,56496.0,1.81294018]
[1726028671003,1.19788828,56497.0,56496.0,1.79894018]
[1726028671236,1.19788828,56497.0,56496.0,1.81294018]
[1726028671916,1.19788828,56497.0,56496.0,1.79894018]
[1726028672137,1.19788828,56497.0,56496.0,1.81294018]
[1726028673562,1.19788828,56497.0,56496.0,1.79894018]
[1726028673790,1.19788828,56497.0,56496.0,1.81294018]
[1726028674590,1.19788828,56497.0,56496.0,1.82698712]
[1726028675473,1.19788828,56497.0,56496.0,1.87279606]
[1726028676151,1.19788828,56497.0,56496.0,1.82698712]
[1726028677490,1.19788828,56497.0,56496.0,1.82861912]
[1726028677947,1.19870428,56497.0,56496.0,1.82861912]
[1726028678658,1.19870428,56497.0,56496.0,2.05625599]
[1726028678873,1.19870428,56497.0,56496.0,1.82861912]
[1726028679354,1.19870428,56497.0,56496.0,2.34323924]
[1726028679568,1.19870428,56497.0,56496.0,2.11560237]
[1726028680012,1.19870428,56497.0,56496.0,2.34328495]
[1726028680235,1.19870428,56497.0,56496.0,2.11560237]
[1726028680892,1.19870428,56497.0,56496.0,1.82861912]
[1726028681122,1.19870428,56497.0,56496.0,1.72861912]
[1726028682238,1.19870428,56497.0,56496.0,1.70561912]
[1726028682239,1.79920428,56497.0,56496.0,1.70561912]
[1726028683822,1.79920428,56497.0,56496.0,1.79161912]
[1726028684042,1.79920428,56497.0,56496.0,1.81461912]
[1726028684311,1.79920428,56497.0,56496.0,1.82861912]
[1726028684517,1.80301388,56497.0,56496.0,1.82861912]
[1726028685403,1.80301388,56497.0,56496.0,0.32861912]
[1726028685638,1.80301388,56497.0,56496.0,0.31457218]
[1726028685883,1.80301388,56497.0,56496.0,1.81457218]
[1726028689137,1.61501388,56497.0,56496.0,1.81457218]
[1726028689774,1.20251388,56497.0,56496.0,1.81457218]
[1726028690426,1.20251388,56497.0,56496.0,2.04448241]
[1726028691117,1.20251388,56497.0,56496.0,2.33146566]
[1726028691782,1.20251388,56497.0,56496.0,2.22330841]
[1726028692865,1.20251388,56497.0,56496.0,2.29417541]
[1726028693072,1.20251388,56497.0,56496.0,2.28217541]
[1726028693301,1.15451923,56497.0,56496.0,2.29583593]
[1726028693751,0.0046256,56497.0,56496.0,2.29583593]
[1726028694200,1.13605039,56498.0,56496.0,2.29583593]
[1726028694408,1.13605039,56498.0,56497.0,0.74329641]
[1726028694841,1.13605039,56498.0,56497.0,2.24329641]
[1726028695072,1.13605039,56498.0,56497.0,2.02885041]
[1726028695518,1.54855039,56498.0,56497.0,2.02885041]
[1726028697077,1.54855039,56498.0,56497.0,2.04285041]
[1726028698521,1.54855039,56498.0,56497.0,2.3300815]
[1726028698890,1.54855039,56498.0,56497.0,2.3160815]
[1726028699315,1.54855039,56498.0,56497.0,2.3300815]
[1726028699733,1.54855039,56498.0,56497.0,2.02885041]
[1726028700210,1.54855039,56498.0,56497.0,2.33031594]
[1726028700650,1.54855039,56498.0,56497.0,2.31631594]
[1726028701115,1.54855039,56498.0,56497.0,2.04285041]
[1726028701327,1.13605039,56498.0,56497.0,2.04285041]
[1726028701565,1.13605039,56498.0,56497.0,2.10219769]
[1726028701808,0.0001,56499.0,56497.0,2.22040746]
[1726028702008,0.0001,56499.0,56498.0,1.07397518]
[1726028702214,0.0001,56499.0,56498.0,1.19697518]
[1726028702440,0.0001,56499.0,56498.0,2.69697518]
[1726028702928,0.0001,56499.0,56498.0,2.68497518]
[1726028703138,0.0001,56499.0,56498.0,2.42317018]
[1726028703360,0.0001,56499.0,56498.0,1.79894018]
[1726028703592,0.0001,56499.0,56498.0,1.81294018]
[1726028703814,0.0001,56499.0,56498.0,2.89140518]
[1726028704031,0.004691,56502.0,56498.0,2.93721412]
[1726028704262,1.11283377,56513.0,56501.0,0.3550856]
[1726028704479,1.11283377,56513.0,56511.0,0.17594018]
[1726028704480,0.63573377,56513.0,56511.0,0.17594018]
[1726028704720,0.63573377,56513.0,56512.0,3.32594018]
[1726028704721,0.60553757,56513.0,56512.0,3.32594018]
[1726028704990,0.60553757,56513.0,56512.0,3.34894018]
[1726028705417,0.60553757,56513.0,56512.0,3.52787195]
[1726028705841,0.60553757,56513.0,56512.0,3.34894018]
[1726028706087,0.60553757,56513.0,56512.0,3.52787195]
[1726028706473,0.60553757,56513.0,56512.0,3.34894018]
[1726028706703,0.60553757,56513.0,56512.0,3.36766305]
[1726028707150,0.60553757,56513.0,56512.0,4.22076305]
[1726028707377,0.0001,56519.0,56512.0,4.26657199]
[1726028707599,0.0001,56519.0,56518.0,0.17594018]
[1726028707831,0.0001,56519.0,56518.0,0.29466305]
[1726028708042,0.0001,56519.0,56518.0,0.31766305]
[1726028708245,0.0001,56519.0,56518.0,1.81766305]
[1726028708714,0.0001,56519.0,56518.0,1.81766799]
[1726028709578,0.0001,56519.0,56518.0,1.83186358]
[1726028710880,0.0001,56519.0,56518.0,1.81766799]
[1726028711097,0.0001,56519.0,56518.0,1.83166799]
[1726028711536,0.0001,56519.0,56518.0,1.83161343]
[1726028711986,0.0001,56519.0,56518.0,1.83149805]
[1726028712220,0.1849,56519.0,56518.0,1.70849805]
[1726028712472,1.0449623,56519.0,56518.0,1.69857708]
[1726028712948,1.0449623,56519.0,56518.0,1.53255787]
[1726028713168,1.0449623,56519.0,56518.0,1.51855787]
[1726028713610,1.0449623,56519.0,56518.0,1.69449805]
[1726028713878,1.0449623,56519.0,56518.0,1.80849805]
[1726028714089,1.0449623,56519.0,56518.0,1.83149805]
[1726028714314,1.0449623,56519.0,56518.0,1.81749805]
[1726028714523,1.0449623,56519.0,56518.0,1.83149805]
[1726028714954,1.0457783,56519.0,56518.0,1.83149805]
[1726028715186,1.0457783,56519.0,56518.0,1.81294018]
[1726028715417,1.0457783,56519.0,56518.0,1.83150658]
[1726028715888,1.0457783,56519.0,56518.0,2.06586852]
[1726028716109,1.0457783,56519.0,56518.0,2.13671852]
[1726028717197,1.0457783,56519.0,56518.0,1.90235658]
[1726028717667,0.60635357,56519.0,56518.0,1.87935658]
[1726028717889,0.60635357,56519.0,56518.0,1.90235658]
[1726028718114,0.60635357,56519.0,56518.0,2.13671852]
[1726028718327,0.60635357,56519.0,56518.0,1.90235658]
[1726028718547,0.60635357,56519.0,56518.0,1.9022087]
[1726028718768,0.60635357,56519.0,56518.0,2.13657064]
[1726028719468,1.19515357,56519.0,56518.0,1.9022087]
[1726028719687,1.19515357,56519.0,56518.0,1.53241852]
[1726028719920,1.19515357,56519.0,56518.0,0.03241852]
[1726028720360,1.19515357,56519.0,56518.0,0.03229131]
[1726028720569,1.19515357,56519.0,56518.0,0.01829131]
[1726028721025,1.19515357,56519.0,56518.0,0.11829131]
[1726028721495,1.19515357,56519.0,56518.0,0.01829131]
[1726028721734,1.19515357,56519.0,56518.0,1.51829131]
[1726028721969,1.19515357,56519.0,56518.0,1.6]
[1726028722192,1.19515357,56519.0,56518.0,1.614]
[1726028722618,1.19515357,56519.0,56518.0,1.6]
[1726028723046,1.19515357,56519.0,56518.0,1.614]
[1726028723482,1.19515357,56519.0,56518.0,1.84833589]
[1726028723704,1.19515357,56519.0,56518.0,1.614]
[1726028727736,1.19515357,56519.0,56518.0,1.615632]
[1726028733933,1.19515357,56519.0,56518.0,1.62920612]
[1726028739180,0.60635357,56519.0,56518.0,1.8051463]
[1726028739415,0.60635357,56519.0,56518.0,1.8281463]
[1726028740040,0.60635357,56519.0,56518.0,1.8141463]
[1726028740884,0.60635357,56519.0,56518.0,1.99606543]
[1726028741538,0.60635357,56519.0,56518.0,2.01006543]
[1726028742195,0.60635357,56519.0,56518.0,1.99606543]
[1726028742645,0.60635357,56519.0,56518.0,2.01006543]
[1726028743107,0.60635357,56519.0,56518.0,1.99606543]
[1726028743745,0.60635357,56519.0,56518.0,1.7911463]
[1726028743977,0.79055357,56519.0,56518.0,1.7911463]
[1726028744188,1.18085357,56519.0,56518.0,1.9576029]
[1726028744685,0.575316,56519.0,56518.0,0.15567026]
[1726028744939,0.575316,56519.0,56512.0,1.55]
[1726028744940,0.03,56513.0,56512.0,1.55]
[1726028745159,0.60892443,56513.0,56512.0,1.55]
[1726028745413,0.5745,56513.0,56512.0,1.7182858]
[1726028745635,0.5745,56513.0,56512.0,1.8243147]
[1726028745843,0.5745,56513.0,56512.0,1.7182858]
[1726028746260,0.5745,56513.0,56512.0,1.8182858]
[1726028746953,0.5745,56513.0,56512.0,1.83175598]
[1726028748236,0.5745,56513.0,56512.0,1.81775598]
[1726028748537,0.5745,56513.0,56512.0,1.83175598]
[1726028750031,0.5745,56513.0,56512.0,2.00769616]
[1726028750255,0.5745,56513.0,56512.0,3.50769616]
[1726028750680,0.5745,56513.0,56512.0,3.33175598]
[1726028751345,1.8471,56513.0,56512.0,3.31775598]
[1726028751547,1.8471,56513.0,56512.0,3.33338798]
[1726028751758,1.847916,56513.0,56512.0,3.33338798]
[1726028752017,1.847916,56513.0,56512.0,3.31938798]
[1726028752461,1.847916,56513.0,56512.0,3.33338798]
[1726028752697,0.60515758,56513.0,56512.0,0.46078798]
[1726028752927,0.60515758,56513.0,56512.0,0.3724902]
[1726028753150,0.60515758,56513.0,56512.0,0.279032]
[1726028753353,0.60515758,56513.0,56512.0,0.3584902]
[1726028753584,0.78109776,56513.0,56512.0,0.279032]
[1726028753813,0.84109776,56513.0,56512.0,0.33199735]
[1726028754716,0.84309776,56513.0,56512.0,0.33199735]
[1726028754912,0.84309776,56513.0,56512.0,0.3459898]
[1726028755387,2.11569776,56513.0,56512.0,0.3319898]
[1726028755612,2.11569776,56513.0,56512.0,0.279032]
[1726028755870,2.11569776,56513.0,56512.0,0.293032]
[1726028756314,2.11569776,56513.0,56512.0,0.279032]
[1726028756551,2.11569776,56513.0,56512.0,0.293032]
[1726028756986,2.11569776,56513.0,56501.0,0.0529578]
[1726028756987,0.6345,56502.0,56501.0,0.0529578]
[1726028757208,0.81641913,56500.0,56499.0,0.0529578]
[1726028757423,0.66634158,56498.0,56496.0,0.001632]
[1726028757637,0.84206881,56498.0,56496.0,0.001632]
[1726028758286,0.05978705,56487.0,56486.0,0.0529578]
[1726028758520,0.05978705,56487.0,56482.0,0.776]
[1726028758521,0.05978705,56485.0,56482.0,0.776]
[1726028758742,1.637167,56484.0,56482.0,0.776]
[1726028758956,0.3903,56483.0,56482.0,0.776]
[1726028759171,0.56624018,56483.0,56482.0,0.776]
[1726028759655,0.59608176,56483.0,56482.0,0.776]
[1726028759869,2.11466881,56483.0,56482.0,0.79]
[1726028760381,2.11466881,56483.0,56478.0,0.001632]
[1726028760382,0.09162863,56479.0,56478.0,0.001632]
[1726028760626,0.84449676,56479.0,56478.0,0.001632]
[1726028762412,0.84549676,56479.0,56478.0,0.001632]
[1726028762881,0.3903,56479.0,56478.0,0.001632]
[1726028763088,0.42114158,56479.0,56478.0,0.001632]
[1726028763312,0.96320089,56479.0,56478.0,0.001632]
[1726028763538,1.02298794,56479.0,56478.0,0.001632]
[1726028763761,0.84106881,56479.0,56478.0,0.001632]
[1726028764216,2.29558794,56479.0,56478.0,0.001632]
[1726028764428,2.29458794,56479.0,56478.0,0.001632]
[1726028764889,2.29558794,56479.0,56478.0,0.001632]
[1726028765133,2.29758794,56479.0,56478.0,0.001632]
[1726028765348,2.29658794,56479.0,56478.0,0.001632]
[1726028765794,2.29758794,56479.0,56478.0,0.001632]
[1726028766498,2.29658794,56479.0,56478.0,0.001632]
[1726028767565,2.29658794,56479.0,56478.0,0.0046918]
[1726028767798,2.29758794,56479.0,56478.0,0.0046918]
[1726028768045,2.48458794,56479.0,56478.0,0.0046918]
[1726028768281,2.29758794,56479.0,56478.0,0.0046918]
[1726028768541,0.02984158,56462.0,56461.0,4.926e-05]
[1726028768754,1.30686999,56462.0,56461.0,4.926e-05]
[1726028769465,1.72679722,56462.0,56461.0,4.926e-05]
[1726028769696,1.72879722,56462.0,56461.0,4.926e-05]
[1726028769926,1.72679722,56462.0,56461.0,4.926e-05]
[1726028770992,1.72779722,56462.0,56461.0,4.926e-05]
[1726028771219,2.11809722,56462.0,56461.0,4.926e-05]
[1726028771672,2.11709722,56462.0,56461.0,4.926e-05]
[1726028771884,2.11809722,56462.0,56461.0,4.926e-05]
[1726028775013,2.34926677,56462.0,56461.0,4.926e-05]
[1726028775245,2.34926677,56462.0,56445.0,0.0062522]
[1726028775246,0.08962863,56446.0,56445.0,0.0062522]
[1726028775481,2.132047,56446.0,56445.0,0.0062522]
[1726028776597,2.132047,56446.0,56445.0,0.0049526]
[1726028776821,1.935547,56446.0,56445.0,0.0049526]
[1726028777720,1.47965995,56446.0,56445.0,0.0169526]
[1726028777954,1.47865995,56446.0,56445.0,0.0049526]
[1726028778191,1.47965995,56446.0,56445.0,0.0049526]
[1726028778432,1.30471977,56446.0,56445.0,0.0169526]
[1726028778669,1.30471977,56446.0,56445.0,0.0049526]
[1726028778670,1.30371977,56446.0,56445.0,0.0049526]
[1726028778909,1.30471977,56446.0,56445.0,0.0049526]
[1726028779147,1.30471977,56446.0,56445.0,1.5049526]
[1726028779387,1.30028952,56446.0,56445.0,1.6049526]
[1726028779845,1.30128952,56446.0,56445.0,1.6059526]
[1726028780350,1.29828952,56446.0,56445.0,1.6049526]
[1726028780564,1.29928952,56446.0,56445.0,1.6059526]
[1726028780780,1.29928952,56446.0,56445.0,1.6049526]
[1726028781221,1.29928952,56446.0,56445.0,1.6059526]
[1726028781582,1.29828952,56446.0,56445.0,1.6049526]
[1726028781817,1.29928952,56446.0,56445.0,1.6049526]
[1726028782054,1.30028952,56446.0,56445.0,1.6059526]
[1726028787367,1.27044794,56446.0,56445.0,1.6059526]
[1726028789166,1.27044794,56446.0,56445.0,1.78787173]
[1726028789944,1.27044794,56446.0,56445.0,1.6059526]
[1726028792128,1.27044794,56446.0,56445.0,0.1059526]
[1726028792602,1.27044794,56446.0,56445.0,1.6059526]
[1726028793719,1.27044794,56446.0,56445.0,1.84719511]
[1726028793943,1.27044794,56446.0,56445.0,1.98158617]
[1726028794416,1.27044794,56446.0,56445.0,1.79966704]
[1726028794651,1.26844794,56446.0,56445.0,1.79866704]
[1726028795151,1.26944794,56446.0,56445.0,1.79966704]
[1726028795430,1.26844794,56446.0,56445.0,1.79866704]
[1726028795604,0.1959,56463.0,56445.0,1.79866704]
[1726028795605,1.26844794,56462.0,56459.0,0.58621295]
[1726028795811,1.26844794,56462.0,56461.0,0.00021295]
[1726028796273,1.26844794,56462.0,56461.0,1.50021295]
[1726028796529,0.3855,56468.0,56460.0,0.1]
[1726028796962,0.02984158,56473.0,56445.0,0.0297814]
[1726028796963,0.02984158,56450.0,56445.0,0.0297814]
[1726028797191,0.02984158,56450.0,56445.0,1.1797814]
[1726028797435,0.02984158,56451.0,56447.0,0.18191913]
[1726028798605,0.02984158,56451.0,56449.0,0.0151712]
[1726028799031,0.02984158,56451.0,56450.0,1.5]
[1726028799247,0.02984158,56451.0,56450.0,1.6]
[1726028800336,0.001,56451.0,56450.0,1.612]
[1726028800835,0.001,56451.0,56450.0,2.198]
[1726028801264,0.001,56451.0,56450.0,2.212]
[1726028801480,0.001,56451.0,56450.0,2.46509258]
[1726028801706,0.001,56451.0,56450.0,2.38621836]
[1726028801930,0.001,56451.0,56450.0,2.49138399]
[1726028802158,0.001,56451.0,56450.0,2.38621836]
[1726028803337,0.001,56451.0,56450.0,2.39958136]
[1726028803537,0.001,56451.0,56450.0,2.57589291]
[1726028804010,0.001,56451.0,56450.0,2.59889291]
[1726028804480,0.001,56451.0,56450.0,2.58489291]
[1726028804702,0.001,56451.0,56450.0,2.59889291]
[1726028805393,0.000818,56455.0,56453.0,0.00021295]
[1726028805618,0.000818,56455.0,56454.0,0.53207767]
[1726028805867,0.000818,56455.0,56454.0,0.63207767]
[1726028806554,9.133e-05,56455.0,56454.0,0.86500312]
[1726028806795,9.133e-05,56455.0,56454.0,1.04621607]
[1726028807018,9.133e-05,56455.0,56454.0,0.65307226]
[1726028807247,9.133e-05,56455.0,56454.0,1.14616698]
[1726028807480,9.133e-05,56455.0,56454.0,0.73800426]
[1726028807701,9.133e-05,56455.0,56454.0,0.72400426]
[1726028808165,9.133e-05,56455.0,56454.0,0.73800426]
[1726028808638,9.133e-05,56455.0,56454.0,0.89777489]
[1726028809106,1.023e-05,56455.0,56454.0,1.34723331]
[1726028809327,1.023e-05,56455.0,56454.0,1.33323331]
[1726028809537,1.023e-05,56455.0,56454.0,1.31923331]
[1726028809760,1.023e-05,56455.0,56454.0,1.34723331]
[1726028809977,1.023e-05,56455.0,56454.0,1.33323331]
[1726028810438,1.023e-05,56455.0,56454.0,1.34723331]
[1726028811301,1.26824498,56463.0,56459.0,0.00021295]
[1726028811535,1.26824498,56463.0,56462.0,0.41641829]
[1726028811750,1.26824498,56463.0,56462.0,0.68940975]
[1726028812174,1.26824498,56463.0,56462.0,0.45491059]
[1726028812389,1.26824498,56463.0,56462.0,1.95491059]
[1726028812614,1.26824498,56463.0,56462.0,2.13612354]
[1726028812836,1.26824498,56463.0,56462.0,2.54842354]
[1726028813059,1.26824498,56463.0,56462.0,2.56242354]
[1726028813534,1.26824498,56463.0,56462.0,2.57642354]
[1726028814233,1.26824498,56471.0,56463.0,0.00021295]
[1726028814450,1.26824498,56471.0,56470.0,0.18191913]
[1726028814672,1.26824498,56471.0,56470.0,0.45491059]
[1726028815107,2.14001379,56471.0,56470.0,0.17299146]
[1726028815354,2.14001379,56471.0,56470.0,0.25236642]
[1726028815607,0.002,56461.0,56460.0,0.15875039]
[1726028815854,0.7865688,56461.0,56459.0,0.05291711]
[1726028816164,0.02984158,56458.0,56457.0,0.05291711]
[1726028816403,0.002,56457.0,56456.0,0.05291711]
[1726028816637,0.03427053,56456.0,56455.0,0.05291711]
[1726028816878,0.21021071,56456.0,56455.0,0.05291711]
[1726028817109,0.21221071,56456.0,56455.0,0.05291711]
[1726028817340,0.21221071,56456.0,56455.0,0.17937496]
[1726028817588,0.21021071,56456.0,56455.0,0.07937496]
[1726028818069,0.21021071,56456.0,56455.0,0.17937496]
[1726028818316,0.21021071,56456.0,56455.0,0.3542043]
[1726028818782,1.53824274,56456.0,56455.0,0.07937496]
[1726028819012,1.53824274,56456.0,56455.0,0.10137496]
[1726028819258,1.53824274,56456.0,56455.0,0.022]
[1726028819472,1.53824274,56456.0,56455.0,0.10137496]
[1726028819687,1.53824274,56456.0,56455.0,0.19685232]
[1726028820387,1.53824274,56456.0,56455.0,0.10139022]
[1726028820601,1.53824274,56456.0,56455.0,0.10139192]
[1726028821033,1.53381379,56456.0,56455.0,0.27622751]
[1726028821282,1.29808656,56456.0,56455.0,0.32915545]
[1726028821504,1.29808656,56456.0,56455.0,0.29683559]
[1726028821936,1.26824498,56456.0,56455.0,1.79683559]
[1726028822589,1.26906298,56456.0,56455.0,1.79683559]
[1726028823241,1.26906298,56456.0,56455.0,1.77483559]
[1726028823698,1.26906298,56456.0,56455.0,1.78883559]
[1726028823932,0.50694158,56474.0,56461.0,0.00021295]
[1726028824156,0.50694158,56474.0,56471.0,0.10585264]
[1726028824157,0.00442755,56473.0,56471.0,0.10585264]
[1726028824393,0.02984158,56474.0,56472.0,0.58750489]
[1726028824631,0.02984158,56474.0,56473.0,0.17326996]
[1726028824866,0.02984158,56474.0,56473.0,1.77326996]
[1726028825511,0.02984158,56475.0,56473.0,1.77326996]
[1726028825737,0.02984158,56475.0,56474.0,0.76710993]
[1726028826465,0.02984158,56475.0,56474.0,2.26710993]
[1726028827336,0.02984158,56475.0,56474.0,2.28110993]
[1726028828226,0.02984158,56475.0,56474.0,2.95126996]
[1726028828227,1.29808656,56475.0,56474.0,2.95126996]
[1726028828683,1.29808656,56475.0,56474.0,2.93726996]
[1726028828913,1.29808656,56475.0,56474.0,2.95126996]
[1726028829141,1.29808656,56475.0,56474.0,2.96415028]
[1726028829594,1.29808656,56475.0,56474.0,3.08243019]
[1726028829820,1.29808656,56475.0,56474.0,3.09643116]
[1726028830086,1.29808656,56475.0,56474.0,0.856914]
[1726028830087,0.86976881,56475.0,56474.0,0.856914]
[1726028830317,0.86976881,56475.0,56474.0,0.028]
[1726028830553,2.14436881,56475.0,56474.0,0.028]
[1726028831468,2.14436881,56475.0,56474.0,0.014]
[1726028831662,2.14436881,56475.0,56474.0,0.023]
[1726028832166,2.14436881,56475.0,56474.0,0.014]
[1726028832359,0.46592863,56461.0,56460.0,0.052914]
[1726028832619,1.73852863,56461.0,56460.0,0.05295483]
[1726028832896,1.73852863,56461.0,56458.0,0.07937064]
[1726028833120,1.76852863,56461.0,56460.0,0.05295483]
[1726028833361,0.05978705,56460.0,56459.0,0.07937064]
[1726028833581,1.36222863,56461.0,56459.0,0.07937064]
[1726028834038,1.36222863,56461.0,56460.0,0.014]
[1726028834264,1.36222863,56461.0,56460.0,0.07937064]
[1726028834708,1.36222863,56461.0,56460.0,0.09337064]
[1726028836062,1.30244158,56461.0,56460.0,0.47668325]
[1726028836276,1.30244158,56461.0,56460.0,0.39731261]
[1726028836762,1.2726,56461.0,56460.0,0.49731261]
[1726028836983,1.30244158,56461.0,56460.0,0.64359349]
[1726028837234,1.30244158,56461.0,56460.0,2.01131261]
[1726028838306,0.02984158,56461.0,56460.0,1.99731261]
[1726028838718,0.02984158,56461.0,56460.0,1.99686382]
[1726028839235,0.02984158,56461.0,56460.0,0.51681678]
[1726028839447,0.02984158,56461.0,56460.0,0.39686382]
[1726028839673,0.02984158,56461.0,56460.0,0.47634216]
[1726028839894,0.02984158,56461.0,56460.0,0.59278295]
[1726028841223,0.02984158,56461.0,56460.0,2.09278295]
[1726028842101,0.02984158,56461.0,56460.0,2.25171242]
[1726028842958,1.2726,56467.0,56461.0,0.1999]
[1726028842959,0.02984158,56466.0,56461.0,0.1999]
[1726028843187,0.02984158,56466.0,56465.0,0.18191913]
[1726028843400,0.02984158,56466.0,56465.0,0.17286382]
[1726028843401,0.21020961,56466.0,56465.0,0.17286382]
[1726028843628,0.20578176,56466.0,56464.0,0.17318609]
[1726028843844,0.21020987,56466.0,56465.0,0.17318609]
[1726028844049,0.20778176,56466.0,56462.0,0.15901075]
[1726028844274,0.002,56465.0,56463.0,0.17318609]
[1726028844502,0.002,56465.0,56460.0,1.824]
[1726028844503,0.002,56465.0,56464.0,0.17318609]
[1726028844756,1.53816881,56466.0,56464.0,0.17318609]
[1726028844757,1.54016881,56466.0,56464.0,0.13252494]
[1726028845593,1.54016881,56466.0,56465.0,0.30571103]
[1726028845847,1.54016881,56466.0,56465.0,0.13252494]
[1726028846063,0.08962863,56465.0,56464.0,0.014]
[1726028846305,0.26556881,56465.0,56464.0,0.29458568]
[1726028847193,0.26556881,56465.0,56464.0,0.17455544]
[1726028847464,0.26556881,56465.0,56464.0,0.014]
[1726028847691,0.26556881,56465.0,56464.0,0.18855544]
[1726028847940,0.26556881,56465.0,56464.0,0.32108038]
[1726028848836,0.26556881,56465.0,56464.0,0.33508038]
[1726028849051,0.26556881,56465.0,56464.0,0.32108038]
[1726028849689,0.26556881,56465.0,56464.0,0.33508038]
[1726028849912,0.26556881,56465.0,56464.0,0.20255544]
[1726028850356,1.53816881,56465.0,56464.0,0.20255544]
[1726028850576,1.53816881,56465.0,56464.0,0.33508038]
[1726028852363,1.30244158,56465.0,56464.0,0.33508038]
[1726028852573,1.30244158,56465.0,56464.0,0.33509425]
[1726028852782,1.30244158,56465.0,56464.0,1.83509425]
[1726028853196,1.30244158,56465.0,56464.0,1.66053876]
[1726028853416,1.30244158,56465.0,56464.0,1.70269494]
[1726028854737,1.30244158,56465.0,56464.0,0.20269494]
[1726028856305,0.02984158,56465.0,56464.0,0.20269494]
[1726028859001,0.02984158,56468.0,56465.0,0.1887]
[1726028859207,0.02984158,56468.0,56466.0,0.17469494]
[1726028859425,0.03426934,56468.0,56467.0,0.17469494]
[1726028859631,0.02984158,56468.0,56467.0,1.67469494]
[1726028860283,0.02984158,56468.0,56467.0,0.17469494]
[1726028861761,0.02984158,56468.0,56467.0,0.18869494]
[1726028861910,0.02984158,56468.0,56467.0,0.20269494]
[1726028862960,0.02984158,56468.0,56467.0,0.20289076]
[1726028863283,0.02984158,56468.0,56467.0,0.41289076]
[1726028863948,0.02984158,56468.0,56467.0,0.39889076]
[1726028864781,0.21020958,56468.0,56467.0,0.39889076]
[1726028865033,0.08962863,56468.0,56467.0,0.39889076]
[1726028865241,0.08962863,56468.0,56467.0,0.38489076]
[1726028865450,0.09162863,56468.0,56467.0,0.39889076]
[1726028865668,0.09162863,56468.0,56467.0,0.41289076]
[1726028865864,0.08962863,56468.0,56467.0,0.39889076]
[1726028866787,0.08962863,56468.0,56467.0,0.41289076]
[1726028867259,0.02984158,56468.0,56467.0,0.41289076]
[1726028867472,0.02984158,56468.0,56467.0,0.73995979]
[1726028867703,0.02984158,56468.0,56467.0,0.75395979]
[1726028867932,0.08962863,56468.0,56467.0,0.75390726]
[1726028868148,0.08962863,56468.0,56467.0,0.73990726]
[1726028868384,0.08962863,56468.0,56467.0,0.57198813]
[1726028868590,0.08962863,56468.0,56467.0,0.55798813]
[1726028868806,0.08962863,56468.0,56467.0,0.39722848]
[1726028869036,0.02984158,56468.0,56467.0,0.39722848]
[1726028869276,0.08962863,56468.0,56467.0,0.39722848]
[1726028870446,0.08962863,56468.0,56467.0,0.238]
[1726028870913,0.02984158,56468.0,56467.0,0.238]
[1726028871132,0.02984158,56468.0,56467.0,0.41306127]
[1726028871415,0.08962863,56468.0,56467.0,0.41306127]
[1726028871623,0.08962863,56468.0,56467.0,0.57229553]
[1726028871815,0.02984158,56468.0,56467.0,0.57229553]
[1726028873501,0.87579649,56468.0,56467.0,0.39723426]
[1726028873702,0.81158176,56468.0,56467.0,0.39723426]
[1726028874095,0.87136881,56468.0,56467.0,0.39723426]
[1726028874317,2.14396881,56468.0,56467.0,0.39723426]
[1726028874757,2.14396881,56468.0,56467.0,0.238]
[1726028875975,2.14596881,56468.0,56467.0,0.238]